bitfinex-derivatives/quotes_BNBF0:USTF0_20260114
["timestamp","ask_amount","ask_price","bid_price","bid_amount"]
[1768402043393,0.18489444,942.29,939.45,1.5304808]
[1768402043594,0.18489444,942.29,939.43,1.5304808]
[1768402043895,0.18489444,942.29,939.4,1.5304808]
[1768402044095,0.18489444,942.29,939.49,1.5304808]
[1768402044693,0.18489444,942.29,939.65,1.5304808]
[1768402044997,0.18489444,942.29,939.64,1.5304808]
[1768402045394,0.18489444,942.29,939.65,1.5304808]
[1768402046395,0.18489444,942.29,939.68,1.5304808]
[1768402046797,1.678,942.28,939.78,1.5304808]
[1768402046997,1.678,942.28,939.74,1.5304808]
[1768402047297,1.678,942.28,939.75,1.5304808]
[1768402049603,1.678,942.28,939.74,1.5304808]
[1768402050313,1.678,942.28,939.83,1.5304808]
[1768402050503,1.678,942.28,939.9,1.5304808]
[1768402050902,1.678,942.28,939.91,1.5304808]
[1768402052106,1.678,942.28,939.9,1.5304808]
[1768402052413,1.678,942.28,939.91,1.5304808]
[1768402053010,1.678,942.28,939.96,1.5304808]
[1768402053205,1.678,942.28,939.23,2.620663]
[1768402053206,1.678,942.28,939.97,1.5304808]
[1768402053705,1.678,942.28,939.96,1.5304808]
[1768402054303,1.678,942.28,939.98,1.5304808]
[1768402055407,1.678,942.28,940.01,1.5304808]
[1768402056510,1.678,942.28,940.17,1.5304808]
[1768402057308,1.678,942.28,940.2,1.5304808]
[1768402058511,1.678,942.28,940.23,1.5304808]
[1768402058913,1.678,942.28,940.22,1.5304808]
[1768402059214,1.678,942.28,940.23,1.5304808]
[1768402059414,1.678,942.28,940.25,1.5304808]
[1768402060424,1.678,942.28,940.27,1.5304808]
[1768402061512,1.678,942.28,940.3,1.5304808]
[1768402062427,1.678,942.28,940.31,1.5304808]
[1768402062615,1.678,942.28,940.27,1.5304808]
[1768402062917,0.18489444,942.29,940.27,1.5304808]
[1768402063322,0.18489444,942.29,940.28,1.5304808]
[1768402064316,0.18489444,942.29,940.33,1.5304808]
[1768402064516,0.18489444,942.29,940.34,1.5304808]
[1768402065320,1.602,942.28,940.3,1.5304808]
[1768402066917,1.602,942.28,940.31,1.5304808]
[1768402067920,1.602,942.28,940.32,1.5304808]
[1768402068426,1.602,942.28,940.44,1.5304808]
[1768402069822,1.602,942.28,940.46,1.5304808]
[1768402070426,1.602,942.28,940.47,1.5304808]
[1768402073427,1.602,942.28,940.48,1.5304808]
[1768402074233,1.602,942.28,940.47,1.5304808]
[1768402074433,1.602,942.28,940.48,1.5304808]
[1768402074726,1.602,942.28,940.53,1.5304808]
[1768402074935,1.602,942.28,940.55,1.5304808]
[1768402075229,1.602,942.28,940.56,1.5304808]
[1768402075429,1.602,942.28,940.57,1.5304808]
[1768402076427,0.18489444,942.29,940.57,1.5304808]
[1768402077229,0.18489444,942.29,939.89,2.620663]
[1768402077230,0.18489444,942.29,940.56,1.5304808]
[1768402077432,0.18489444,942.29,940.57,1.5304808]
[1768402077732,0.18489444,942.29,940.39,1.5304808]
[1768402078028,0.18489444,942.29,940.38,1.5304808]
[1768402078228,0.18489444,942.29,940.39,1.5304808]
[1768402078931,0.18489444,942.29,940.46,1.5304808]
[1768402079737,2.029,942.28,940.46,1.5304808]
[1768402079938,2.029,942.28,940.45,1.5304808]
[1768402080138,2.029,942.28,940.44,1.5304808]
[1768402080330,2.029,942.28,940.38,1.5304808]
[1768402080530,2.029,942.28,940.41,1.5304808]
[1768402080740,2.029,942.28,940.42,1.5304808]
[1768402081035,2.029,942.28,939.65,2.620663]
[1768402081431,2.029,942.28,939.72,2.620663]
[1768402081841,2.029,942.28,939.73,2.620663]
[1768402082336,2.029,942.28,939.72,2.620663]
[1768402082839,2.029,942.28,939.47,2.620663]
[1768402083337,2.029,942.28,939.46,2.620663]
[1768402083838,2.029,942.28,939.58,2.620663]
[1768402084834,2.029,942.28,939.57,2.620663]
[1768402085534,2.029,942.28,939.54,2.620663]
[1768402087633,2.029,942.28,939.56,2.620663]
[1768402088235,2.029,942.28,939.57,2.620663]
[1768402088632,2.029,942.28,939.59,2.620663]
[1768402089148,2.029,942.28,939.64,2.620663]
[1768402089649,2.029,942.28,939.66,2.620663]
[1768402090637,2.029,942.28,939.67,2.620663]
[1768402091740,2.029,942.28,939.68,2.620663]
[1768402092748,2.029,942.28,939.69,2.620663]
[1768402093249,2.029,942.28,939.7,2.620663]
[1768402093749,2.029,942.28,939.71,2.620663]
[1768402094347,2.029,942.28,939.72,2.620663]
[1768402095451,2.029,942.28,939.74,2.620663]
[1768402095946,2.029,942.28,939.73,2.620663]
[1768402097347,2.029,942.28,939.74,2.620663]
[1768402097848,2.029,942.28,939.75,2.620663]
[1768402099858,0.75688914,942.27,939.75,2.620663]
[1768402100059,0.75688914,942.26,939.75,2.620663]
[1768402100257,0.75688914,942.25,939.75,2.620663]
[1768402100460,0.75688914,942.24,939.74,2.620663]
[1768402100664,0.75688914,942.23,939.74,2.620663]
[1768402100955,0.75688914,942.22,939.74,2.620663]
[1768402101160,0.75688914,942.21,939.74,2.620663]
[1768402101360,0.75688914,942.2,939.74,2.620663]
[1768402101559,0.75688914,942.19,939.74,2.620663]
[1768402101862,0.75688914,942.18,939.62,2.620663]
[1768402102166,0.75688914,942.17,939.62,2.620663]
[1768402102357,0.75688914,942.16,939.62,2.620663]
[1768402102660,0.75688914,942.15,939.62,2.620663]
[1768402102866,0.75688914,942.14,939.61,2.620663]
[1768402103164,0.75688914,942.13,939.61,2.620663]
[1768402103366,0.75688914,942.12,939.81,2.620663]
[1768402103559,0.75688914,942.11,939.81,2.620663]
[1768402103858,0.75688914,942.1,939.83,2.620663]
[1768402104060,0.75688914,942.09,939.83,2.620663]
[1768402104258,0.75688914,942.08,939.83,2.620663]
[1768402104457,2.029,942.28,939.92,2.620663]
[1768402104458,0.75688914,942.07,939.92,2.620663]
[1768402104759,0.75688914,942.06,939.92,2.620663]
[1768402104964,0.75688914,942.05,939.96,2.620663]
[1768402105161,0.75688914,942.04,939.96,2.620663]
[1768402105360,0.75688914,942.03,939.96,2.620663]
[1768402105662,0.75688914,942.02,939.95,2.620663]
[1768402105859,0.75688914,942.01,939.95,2.620663]
[1768402106062,0.75688914,942.0,940.11,2.620663]
[1768402106262,0.75688914,941.99,940.11,2.620663]
[1768402106465,0.75688914,941.98,940.12,2.620663]
[1768402106662,0.75688914,941.97,940.12,2.620663]
[1768402106863,0.75688914,941.96,940.12,2.620663]
[1768402107065,0.75688914,941.95,940.25,2.620663]
[1768402107261,0.75688914,941.94,940.25,2.620663]
[1768402107460,0.75688914,941.93,940.28,2.620663]
[1768402107658,0.75688914,941.92,940.28,2.620663]
[1768402107865,0.75688914,941.91,940.28,2.620663]
[1768402108165,0.75688914,941.9,940.29,2.620663]
[1768402108362,0.75688914,941.89,940.29,2.620663]
[1768402108666,0.75688914,941.88,940.26,2.620663]
[1768402108963,0.75688914,941.87,940.26,2.620663]
[1768402109162,0.75460571,941.86,940.23,2.620663]
[1768402109461,0.75460571,941.85,940.23,2.620663]
[1768402109660,0.75460571,941.84,940.23,2.620663]
[1768402109862,2.029,942.28,940.23,2.620663]
[1768402109863,0.75460571,941.83,940.23,2.620663]
[1768402110062,0.75460571,941.82,940.23,2.620663]
[1768402110261,0.75460571,941.81,940.21,2.620663]
[1768402110463,0.75460571,941.8,940.21,2.620663]
[1768402110662,0.75460571,941.79,940.21,2.620663]
[1768402110967,0.75460571,941.78,940.21,2.620663]
[1768402111263,0.75460571,941.77,940.18,2.620663]
[1768402111462,0.75460571,941.76,940.18,2.620663]
[1768402111663,0.75460571,941.75,940.18,2.620663]
[1768402111864,0.75460571,941.74,940.18,2.620663]
[1768402112062,0.75460571,941.73,940.18,2.620663]
[1768402112267,0.75460571,941.72,940.16,2.620663]
[1768402112467,0.75460571,941.71,940.16,2.620663]
[1768402112666,0.75460571,941.7,940.12,2.620663]
[1768402112867,0.75460571,941.69,940.12,2.620663]
[1768402113063,0.75460571,941.68,940.12,2.620663]
[1768402113369,0.75460571,941.67,940.14,2.620663]
[1768402113569,0.75460571,941.66,940.14,2.620663]
[1768402113769,0.75460571,941.65,940.13,2.620663]
[1768402113970,0.75460571,941.64,940.13,2.620663]
[1768402114268,0.75460571,941.63,940.12,2.620663]
[1768402114465,2.029,942.28,940.12,2.620663]
[1768402114466,0.75460571,941.62,940.12,2.620663]
[1768402114669,2.029,942.28,940.12,2.620663]
[1768402114867,0.75263553,942.27,940.2,2.620663]
[1768402115070,0.75263553,942.26,940.2,2.620663]
[1768402115370,0.75263553,942.25,940.19,2.620663]
[1768402115570,0.75263553,942.24,940.19,2.620663]
[1768402115780,0.75263553,942.23,940.24,2.620663]
[1768402116070,0.75263553,942.22,940.24,2.620663]
[1768402116267,0.75263553,942.21,940.21,2.620663]
[1768402116467,0.75263553,942.2,940.21,2.620663]
[1768402116669,0.75263553,942.19,940.21,2.620663]
[1768402116869,0.75263553,942.18,940.34,2.620663]
[1768402117167,0.75263553,942.17,940.34,2.620663]
[1768402117367,0.75263553,942.16,940.31,2.620663]
[1768402117566,0.75263553,942.15,940.31,2.620663]
[1768402117767,0.75263553,942.14,940.31,2.620663]
[1768402117964,0.75263553,942.13,940.31,2.620663]
[1768402118165,0.75263553,942.12,940.31,2.620663]
[1768402118466,0.75263553,942.11,940.27,2.620663]
[1768402118666,0.75263553,942.1,940.27,2.620663]
[1768402118871,0.75263553,942.09,940.27,2.620663]
[1768402119072,0.75263553,942.08,940.27,2.620663]
[1768402119272,0.75263553,942.07,940.14,2.620663]
[1768402119472,0.75263553,942.06,940.14,2.620663]
[1768402119672,0.75263553,942.05,940.14,2.620663]
[1768402119871,0.75263553,942.04,940.12,2.620663]
[1768402120074,0.75263553,942.03,940.12,2.620663]
[1768402120273,0.75263553,942.02,940.11,2.620663]
[1768402120472,0.75263553,942.01,940.11,2.620663]
[1768402120671,0.75263553,942.0,940.11,2.620663]
[1768402120874,0.75263553,941.99,940.11,2.620663]
[1768402121170,0.75263553,941.98,940.11,2.620663]
[1768402121378,0.75263553,941.97,940.09,2.620663]
[1768402121579,0.75263553,941.96,940.09,2.620663]
[1768402121874,0.75263553,941.95,940.1,2.620663]
[1768402122170,0.75263553,941.94,940.1,2.620663]
[1768402122370,2.029,942.28,940.12,2.620663]
[1768402122572,0.75020473,942.27,940.12,2.620663]
[1768402122774,0.75020473,942.26,940.12,2.620663]
[1768402122974,0.75020473,942.25,940.27,2.620663]
[1768402123176,0.75020473,942.24,940.27,2.620663]
[1768402123475,0.75020473,942.23,940.28,2.620663]
[1768402123774,2.029,942.28,940.28,2.620663]
[1768402123775,0.75020473,942.22,940.28,2.620663]
[1768402123975,2.029,942.28,939.94,3.6689282]
[1768402123976,0.75020473,942.21,940.29,2.620663]
[1768402124172,0.75020473,942.2,940.29,2.620663]
[1768402124373,0.75020473,942.19,940.29,2.620663]
[1768402124574,0.75020473,942.18,940.29,2.620663]
[1768402124775,0.75020473,942.17,940.29,2.620663]
[1768402124976,0.75020473,942.16,940.29,2.620663]
[1768402125276,0.75020473,942.15,940.29,2.620663]
[1768402125475,2.029,942.28,940.29,2.620663]
[1768402125677,0.74923109,942.27,940.33,2.620663]
[1768402125873,0.74923109,942.26,940.33,2.620663]
[1768402126075,0.74923109,942.25,940.36,2.620663]
[1768402126274,2.029,942.28,940.36,2.620663]
[1768402126476,0.74883217,942.27,940.36,2.620663]
[1768402126673,2.029,942.28,940.36,2.620663]
[1768402126674,0.74883217,942.26,940.36,2.620663]
[1768402126878,2.029,942.28,940.36,2.620663]
[1768402127073,2.029,942.28,940.52,2.620663]
[1768402127678,2.029,942.28,940.48,2.620663]
[1768402128076,2.029,942.28,940.46,2.620663]
[1768402128684,2.029,942.28,940.44,2.620663]
[1768402129177,2.029,942.28,940.42,2.620663]
[1768402130377,2.029,942.28,940.4,2.620663]
[1768402131177,2.029,942.28,940.39,2.620663]
[1768402131782,2.029,942.28,940.3,2.620663]
[1768402132280,2.029,942.28,940.29,2.620663]
[1768402133384,2.029,942.28,940.51,2.620663]
[1768402133782,2.029,942.28,940.53,2.620663]
[1768402134381,2.029,942.28,940.19,3.6689282]
[1768402134382,2.029,942.28,940.52,2.620663]
[1768402134882,2.029,942.28,940.19,3.6689282]
[1768402134883,2.029,942.28,940.57,2.620663]
[1768402135381,2.029,942.28,940.63,2.620663]
[1768402135784,0.00831749,943.21,940.63,2.620663]
[1768402135979,0.74680808,943.2,940.61,2.620663]
[1768402136181,0.74680808,943.19,940.61,2.620663]
[1768402136380,0.74680808,943.18,940.63,2.620663]
[1768402136586,0.74680808,943.17,940.63,2.620663]
[1768402136885,0.74680808,943.16,940.72,2.620663]
[1768402137185,0.74680808,943.15,940.72,2.620663]
[1768402137380,0.74680808,943.15,940.71,2.620663]
[1768402137581,0.18459041,943.74,940.71,2.620663]
[1768402137782,0.74598375,943.73,940.71,2.620663]
[1768402137980,0.18459041,943.74,939.85,5.241326]
[1768402137981,0.74598375,943.72,940.76,2.620663]
[1768402138184,0.74598375,943.71,940.76,2.620663]
[1768402138379,0.74598375,943.7,940.76,2.620663]
[1768402138583,0.74598375,943.69,940.74,2.620663]
[1768402138780,0.74598375,943.68,940.74,2.620663]
[1768402138985,0.74598375,943.67,940.74,2.620663]
[1768402139181,0.74598375,943.66,940.74,2.620663]
[1768402139482,0.74598375,943.65,940.94,2.620663]
[1768402139784,0.74598375,943.64,940.94,2.620663]
[1768402139981,0.74598375,943.63,940.94,2.620663]
[1768402140182,0.74598375,943.63,940.61,3.6689282]
[1768402140183,0.74598375,943.62,940.95,2.620663]
[1768402140384,0.74598375,943.61,940.95,2.620663]
[1768402140580,0.74598375,943.6,940.95,2.620663]
[1768402140781,0.74598375,943.59,940.95,2.620663]
[1768402140981,0.74598375,943.58,940.95,2.620663]
[1768402141181,0.74598375,943.57,940.92,2.620663]
[1768402141482,0.74598375,943.56,940.92,2.620663]
[1768402141681,0.74598375,943.55,940.93,2.620663]
[1768402141984,0.74598375,943.54,940.93,2.620663]
[1768402142186,0.74598375,943.53,940.88,2.620663]
[1768402142487,0.74598375,943.52,940.79,2.620663]
[1768402142780,0.74598375,943.51,940.79,2.620663]
[1768402142981,0.74598375,943.5,940.82,2.620663]
[1768402143285,0.74598375,943.49,940.82,2.620663]
[1768402143486,0.74598375,943.48,940.8,2.620663]
[1768402143680,0.74598375,943.47,940.8,2.620663]
[1768402143881,0.74598375,943.47,940.46,3.6689282]
[1768402143882,0.74598375,943.46,940.74,2.620663]
[1768402144082,0.74598375,943.45,940.74,2.620663]
[1768402144282,0.74598375,943.44,940.74,2.620663]
[1768402144486,0.74598375,943.43,940.72,2.620663]
[1768402144685,2.102,943.71,940.72,2.620663]
[1768402144686,0.74598375,943.42,940.72,2.620663]
[1768402144986,2.102,943.71,940.64,2.620663]
[1768402144987,0.74598375,943.41,940.64,2.620663]
[1768402145188,0.74598375,943.4,940.64,2.620663]
[1768402145383,0.74598375,943.39,940.5,2.620663]
[1768402145686,0.74598375,943.38,940.5,2.620663]
[1768402145987,0.74598375,943.37,940.42,2.620663]
[1768402146187,0.74598375,943.36,940.42,2.620663]
[1768402146485,0.74598375,943.35,940.52,2.620663]
[1768402146684,0.74598375,943.34,940.52,2.620663]
[1768402146884,0.74598375,943.33,940.52,2.620663]
[1768402147187,0.74598375,943.32,940.54,2.620663]
[1768402147386,0.74598375,943.31,940.54,2.620663]
[1768402147682,0.74598375,943.3,940.63,2.620663]
[1768402147884,0.74598375,943.29,940.63,2.620663]
[1768402148083,0.74598375,943.28,940.71,2.620663]
[1768402148285,0.74598375,943.27,940.71,2.620663]
[1768402148484,0.74598375,943.26,940.74,2.620663]
[1768402148682,0.74598375,943.25,940.74,2.620663]
[1768402148881,0.74598375,943.24,940.74,2.620663]
[1768402149082,0.74598375,943.23,940.74,2.620663]
[1768402149283,0.74598375,943.22,940.74,2.620663]
[1768402149486,0.74598375,943.21,940.76,2.620663]
[1768402149684,0.74598375,943.2,940.76,2.620663]
[1768402149884,0.74598375,943.19,940.76,2.620663]
[1768402150085,0.74598375,943.18,940.71,2.620663]
[1768402150388,0.74598375,943.17,940.71,2.620663]
[1768402150688,0.74598375,943.17,940.37,3.6689282]
[1768402150689,0.74598375,943.16,940.73,2.620663]
[1768402150886,0.74598375,943.15,940.73,2.620663]
[1768402151089,0.74598375,943.14,940.73,2.620663]
[1768402151390,0.74598375,943.13,940.73,2.620663]
[1768402151585,0.74598375,943.12,940.74,2.620663]
[1768402151786,0.74598375,943.11,940.74,2.620663]
[1768402151986,0.74598375,943.1,940.74,2.620663]
[1768402152289,0.74598375,943.09,940.74,2.620663]
[1768402152485,0.74598375,943.08,940.74,2.620663]
[1768402152687,0.74598375,943.07,940.75,2.620663]
[1768402152888,0.74598375,943.06,940.75,2.620663]
[1768402153086,0.74598375,943.05,940.75,2.620663]
[1768402153390,0.74598375,943.04,940.75,2.620663]
[1768402153585,0.74598375,943.03,940.75,2.620663]
[1768402153791,0.74598375,943.02,940.68,2.620663]
[1768402154091,0.74598375,943.01,940.68,2.620663]
[1768402154290,0.74598375,943.0,940.67,2.620663]
[1768402154587,0.74598375,942.99,940.53,2.620663]
[1768402154790,0.74598375,942.98,940.42,2.620663]
[1768402155087,0.74598375,942.97,940.42,2.620663]
[1768402155288,0.74598375,942.96,940.42,2.620663]
[1768402155488,0.74598375,942.95,940.08,3.6689282]
[1768402155788,0.74598375,942.94,940.22,2.5741607]
[1768402155993,0.74598375,942.93,940.22,2.5741607]
[1768402156194,0.74598375,942.92,939.78,2.5741607]
[1768402156493,0.74598375,942.91,939.78,2.5741607]
[1768402156689,0.74598375,942.9,939.8,2.5741607]
[1768402156891,0.74598375,942.89,939.8,2.5741607]
[1768402157088,0.74598375,942.88,939.79,2.5741607]
[1768402157289,0.74598375,942.87,939.79,2.5741607]
[1768402157488,0.74598375,942.86,939.79,2.5741607]
[1768402157790,0.74598375,942.85,939.79,2.5741607]
[1768402157988,0.74598375,942.84,939.79,2.5741607]
[1768402158189,0.74598375,942.83,939.78,2.5741607]
[1768402158393,0.74598375,942.82,939.78,2.5741607]
[1768402158690,0.74598375,942.81,939.76,2.5741607]
[1768402158893,0.74598375,942.8,939.76,2.5741607]
[1768402159090,0.74598375,942.79,939.76,2.5741607]
[1768402159393,0.74598375,942.78,939.78,2.5741607]
[1768402159593,0.74598375,942.77,939.78,2.5741607]
[1768402159793,0.74598375,942.76,939.78,2.5741607]
[1768402159992,0.74598375,942.75,939.78,2.5741607]
[1768402160294,0.74598375,942.74,939.63,2.5741607]
[1768402160494,0.74598375,942.73,939.63,2.5741607]
[1768402160689,0.74598375,942.72,939.63,2.5741607]
[1768402160892,0.74598375,942.71,939.63,2.5741607]
[1768402161192,0.74598375,942.7,939.63,2.5741607]
[1768402161392,0.74598375,942.7,939.29,3.6689282]
[1768402161393,0.76046697,942.69,939.62,2.5741607]
[1768402161590,0.76046697,942.68,939.62,2.5741607]
[1768402161889,0.76046697,942.67,939.62,2.5741607]
[1768402162093,0.76046697,942.66,939.62,2.5741607]
[1768402162295,0.76046697,942.65,939.46,2.5741607]
[1768402162493,0.76046697,942.64,939.46,2.5741607]
[1768402162692,0.76046697,942.63,939.46,2.5741607]
[1768402162894,0.76046697,942.62,939.46,2.5741607]
[1768402163093,0.76046697,942.61,939.46,2.5741607]
[1768402163394,0.76046697,942.6,939.43,2.5741607]
[1768402163594,0.76046697,942.59,939.43,2.5741607]
[1768402163894,0.76046697,942.58,939.43,2.5741607]
[1768402164192,0.76046697,942.57,939.43,2.5741607]
[1768402164503,0.76046697,942.56,939.41,2.5741607]
[1768402164695,0.76046697,942.55,939.41,2.5741607]
[1768402164893,0.76046697,942.54,939.43,2.5741607]
[1768402165097,0.76046697,942.53,939.43,2.5741607]
[1768402165394,0.76046697,942.53,939.07,3.6689282]
[1768402165395,0.76046697,942.52,939.4,2.5741607]
[1768402165589,0.76046697,942.51,939.4,2.5741607]
[1768402165789,0.76046697,942.5,939.4,2.5741607]
[1768402165991,0.76046697,942.49,939.4,2.5741607]
[1768402166192,0.76046697,942.48,939.4,2.5741607]
[1768402166394,0.76046697,942.47,939.38,2.5741607]
[1768402166594,0.76046697,942.46,939.38,2.5741607]
[1768402166791,0.76046697,942.45,939.38,2.5741607]
[1768402166991,0.76046697,942.44,939.38,2.5741607]
[1768402167196,0.76046697,942.43,939.38,2.5741607]
[1768402167491,0.76046697,942.42,939.36,2.5741607]
[1768402167694,2.102,943.71,939.36,2.5741607]
[1768402167695,0.76046697,942.41,939.36,2.5741607]
[1768402167894,0.76046697,942.4,939.36,2.5741607]
[1768402168092,0.76046697,942.39,939.36,2.5741607]
[1768402168291,0.76046697,942.38,939.36,2.5741607]
[1768402168497,0.76046697,942.37,939.34,2.5741607]
[1768402168798,0.76046697,942.36,939.18,2.5741607]
[1768402168993,0.76046697,942.35,939.18,2.5741607]
[1768402169192,0.76046697,942.34,939.15,2.5741607]
[1768402169397,0.76046697,942.33,939.15,2.5741607]
[1768402169695,0.76046697,942.32,939.15,2.5741607]
[1768402169894,0.76046697,942.31,939.27,2.5741607]
[1768402170198,0.76046697,942.3,939.27,2.5741607]
[1768402170397,0.76046697,942.29,939.25,2.5741607]
[1768402170599,0.76046697,942.28,939.25,2.5741607]
[1768402170795,0.76046697,942.27,939.29,2.5741607]
[1768402170996,0.76046697,942.26,939.29,2.5741607]
[1768402171195,0.76046697,942.25,939.29,2.5741607]
[1768402171400,0.76046697,942.24,939.31,2.5741607]
[1768402171599,0.76046697,942.23,939.31,2.5741607]
[1768402171899,1.808,942.25,939.43,2.5741607]
[1768402171900,0.76046697,942.22,939.43,2.5741607]
[1768402172100,0.76046697,942.21,939.43,2.5741607]
[1768402172304,0.76046697,942.2,939.59,2.5741607]
[1768402172503,0.76046697,942.19,939.59,2.5741607]
[1768402172699,0.76046697,942.18,939.59,2.5741607]
[1768402172903,0.76046697,942.17,939.59,2.5741607]
[1768402173204,0.76046697,942.16,939.59,2.5741607]
[1768402173404,0.76046697,942.15,939.57,2.5741607]
[1768402173604,0.76046697,942.14,939.57,2.5741607]
[1768402173803,0.76046697,942.13,939.57,2.5741607]
[1768402174000,0.76046697,942.12,939.58,2.5741607]
[1768402174301,0.76046697,942.11,939.58,2.5741607]
[1768402174501,1.808,942.25,939.59,2.5741607]
[1768402174502,0.76046697,942.1,939.59,2.5741607]
[1768402174701,0.76046697,942.09,939.59,2.5741607]
[1768402174901,0.76046697,942.08,939.6,2.5741607]
[1768402175108,1.808,942.25,939.6,2.5741607]
[1768402175307,0.75608579,942.24,939.6,2.5741607]
[1768402175606,0.75608579,942.23,939.74,2.5741607]
[1768402175807,0.75608579,942.22,939.74,2.5741607]
[1768402176002,0.75608579,942.21,939.74,2.5741607]
[1768402176306,0.75614745,942.2,939.74,2.5741607]
[1768402176507,1.808,942.25,939.74,2.5741607]
[1768402176707,0.75614412,942.24,939.74,2.5741607]
[1768402177002,0.75614412,942.23,939.74,2.5741607]
[1768402177302,0.75614412,942.22,939.74,2.5741607]
[1768402177506,0.75614412,942.21,939.74,2.5741607]
[1768402177700,0.75614412,942.2,939.72,2.5741607]
[1768402177905,0.75614412,942.19,939.72,2.5741607]
[1768402178104,1.808,942.25,939.72,2.5741607]
[1768402178607,1.808,942.25,939.87,2.5741607]
[1768402179208,1.808,942.25,939.88,2.5741607]
[1768402179708,1.808,942.25,940.01,2.5741607]
[1768402181206,1.808,942.25,940.02,2.5741607]
[1768402181906,1.808,942.25,939.67,3.6689282]
[1768402181907,1.808,942.25,940.03,2.5741607]
[1768402182306,1.808,942.25,940.04,2.5741607]
[1768402183311,1.808,942.25,940.05,2.5741607]
[1768402184310,1.808,942.25,940.08,2.5741607]
[1768402184813,1.808,942.25,940.07,2.5741607]
[1768402185509,1.808,942.25,940.08,2.5741607]
[1768402186009,1.808,942.25,940.1,2.5741607]
[1768402186513,1.808,942.25,940.11,2.5741607]
[1768402187609,1.808,942.25,940.16,2.5741607]
[1768402188011,1.808,942.25,940.34,2.5741607]
[1768402188509,1.808,942.25,940.02,3.6689282]
[1768402188510,1.808,942.25,940.36,2.5741607]
[1768402190011,1.808,942.25,940.35,2.5741607]
[1768402190618,1.808,942.25,940.36,2.5741607]
[1768402191713,1.808,942.25,940.38,2.5741607]
[1768402192218,1.808,942.25,940.39,2.5741607]
[1768402193219,1.808,942.25,940.42,2.5741607]
[1768402195924,1.808,942.25,940.43,2.5741607]
[1768402196319,1.808,942.25,940.42,2.5741607]
[1768402196917,1.808,942.25,940.44,2.5741607]
[1768402197322,1.808,942.25,940.56,2.5741607]
[1768402197919,1.808,942.25,940.57,2.5741607]
[1768402198419,1.808,942.25,940.64,2.5741607]
[1768402198920,1.808,942.25,940.65,2.5741607]
[1768402199526,1.808,942.25,940.64,2.5741607]
[1768402200626,1.808,942.25,940.62,2.5741607]
[1768402201029,1.808,942.25,940.54,2.5741607]
[1768402201525,1.808,942.25,940.56,2.5741607]
[1768402203526,1.808,942.25,940.47,2.5741607]
[1768402204134,1.808,942.25,940.48,2.5741607]
[1768402204632,0.76091387,942.24,940.28,2.5741607]
[1768402204828,0.76091387,942.23,940.28,2.5741607]
[1768402205029,0.76091387,942.22,940.28,2.5741607]
[1768402205229,0.76091387,942.21,940.27,2.5741607]
[1768402205432,0.76091387,942.2,940.16,2.5741607]
[1768402205631,0.76091387,942.19,940.16,2.5741607]
[1768402205827,0.76091387,942.18,940.07,2.5741607]
[1768402206030,0.76091387,942.17,940.07,2.5741607]
[1768402206229,0.76091387,942.16,940.05,2.5741607]
[1768402206430,1.808,942.25,940.05,2.5741607]
[1768402206431,0.76091387,942.15,940.05,2.5741607]
[1768402206634,0.76091387,942.14,940.05,2.5741607]
[1768402206934,0.76091387,942.13,940.05,2.5741607]
[1768402207134,0.76091387,942.12,940.05,2.5741607]
[1768402207330,0.76091387,942.11,940.06,2.5741607]
[1768402207533,0.76091387,942.1,940.06,2.5741607]
[1768402207732,0.76091387,942.09,940.06,2.5741607]
[1768402208036,0.76091387,942.08,940.06,2.5741607]
[1768402208236,0.76091387,942.07,940.06,2.5741607]
[1768402208536,0.76091387,942.06,940.08,2.5741607]
[1768402208732,0.76091387,942.05,940.08,2.5741607]
[1768402208935,0.76091387,942.04,940.08,2.5741607]
[1768402209137,0.76091387,942.03,940.08,2.5741607]
[1768402209334,0.76091387,942.02,940.1,2.5741607]
[1768402209638,0.76091387,942.01,940.1,2.5741607]
[1768402209938,0.76091387,942.0,940.08,2.5741607]
[1768402210139,0.76091387,941.99,940.08,2.5741607]
[1768402210437,0.76091387,941.98,940.1,2.5741607]
[1768402210638,0.76091387,941.97,940.1,2.5741607]
[1768402210838,0.76091387,941.96,940.09,2.5741607]
[1768402211038,0.76091387,941.95,940.09,2.5741607]
[1768402211240,0.76091387,941.94,940.09,2.5741607]